[Event "*** Titled Tuesday Blitz"]
[Site "Chess.com"]
[Date "2020.05.05"]
[Round "10"]
[White "turayev_shahruh17"]
[Black "Nafania1"]
[Result "0-1"]
[WhiteElo "2533"]
[BlackElo "2424"]
[TimeControl "180+1"]
[EndTime "11:58:20 PDT"]
[Termination "Nafania1 won by resignation"]

1. e4 {[%clk 0:03:00]} 1... e6 {[%clk 0:03:00.2]} 2. Nc3 {[%clk 0:03:00.9]} 2...
d5 {[%clk 0:02:59.6]} 3. d4 {[%clk 0:03:01.8]} 3... h6 {[%clk 0:02:58.9]} 4.
exd5 {[%clk 0:03:00.4]} 4... exd5 {[%clk 0:02:58.7]} 5. Bf4 {[%clk 0:03:00.9]}
5... Bb4 {[%clk 0:02:52.5]} 6. Bd3 {[%clk 0:02:59.6]} 6... Nf6 {[%clk
0:02:50.7]} 7. Ne2 {[%clk 0:02:59.7]} 7... O-O {[%clk 0:02:49.5]} 8. O-O {[%clk
0:02:59.8]} 8... c6 {[%clk 0:02:36.4]} 9. a3 {[%clk 0:02:59.5]} 9... Bd6 {[%clk
0:02:36.3]} 10. Qd2 {[%clk 0:02:57.7]} 10... Re8 {[%clk 0:02:36.1]} 11. Ng3
{[%clk 0:02:55.1]} 11... Be6 {[%clk 0:02:22.2]} 12. Nce2 {[%clk 0:02:52.5]}
12... Qc7 {[%clk 0:02:16.7]} 13. Bxh6 {[%clk 0:02:46.6]} 13... gxh6 {[%clk
0:01:51.8]} 14. Qxh6 {[%clk 0:02:47.5]} 14... Qd8 {[%clk 0:01:31.5]} 15. Nh5
{[%clk 0:02:25.2]} 15... Nxh5 {[%clk 0:01:27.7]} 16. Bh7+ {[%clk 0:02:23.2]}
16... Kh8 {[%clk 0:01:27.4]} 17. Qxh5 {[%clk 0:02:17.2]} 17... Kg7 {[%clk
0:01:19.6]} 18. Bf5 {[%clk 0:01:54.4]} 18... Bxf5 {[%clk 0:01:08.8]} 19. Qxf5
{[%clk 0:01:55.3]} 19... Qf6 {[%clk 0:01:01.6]} 20. Qh5 {[%clk 0:01:54.1]} 20...
Rh8 {[%clk 0:00:52.9]} 21. Qg4+ {[%clk 0:01:53.7]} 21... Qg6 {[%clk 0:00:53.1]}
22. Qxg6+ {[%clk 0:01:54.1]} 22... fxg6 {[%clk 0:00:53.5]} 23. g3 {[%clk
0:01:51.7]} 23... Nd7 {[%clk 0:00:53.4]} 24. Kg2 {[%clk 0:01:51.3]} 24... Rae8
{[%clk 0:00:53.4]} 25. Ng1 {[%clk 0:01:50.7]} 25... Re4 {[%clk 0:00:51.5]} 26.
c3 {[%clk 0:01:50.4]} 26... Rhe8 {[%clk 0:00:48.9]} 27. f3 {[%clk 0:01:49.3]}
27... Re3 {[%clk 0:00:48.3]} 28. Rad1 {[%clk 0:01:49.7]} 28... Nb6 {[%clk
0:00:47.9]} 29. Rf2 {[%clk 0:01:44.5]} 29... Nc4 {[%clk 0:00:47.6]} 30. h4
{[%clk 0:01:42.8]} 30... a5 {[%clk 0:00:46.9]} 31. Rdf1 {[%clk 0:01:38.5]} 31...
Rd3 {[%clk 0:00:42.5]} 32. Rc1 {[%clk 0:01:30]} 32... a4 {[%clk 0:00:38.8]} 33.
Nh3 {[%clk 0:01:24.6]} 33... Rd2 {[%clk 0:00:37.7]} 34. Rc2 {[%clk 0:01:21.3]}
34... Rxc2 {[%clk 0:00:33.7]} 35. Rxc2 {[%clk 0:01:20.8]} 35... Ne3+ {[%clk
0:00:33.9]} 36. Kf2 {[%clk 0:01:21]} 36... Nxc2 {[%clk 0:00:34.1]} 37. Ng5
{[%clk 0:01:21.4]} 37... Na1 {[%clk 0:00:31]} 38. f4 {[%clk 0:01:21.3]} 38...
Nb3 {[%clk 0:00:30.9]} 39. Kf3 {[%clk 0:01:21.6]} 39... Nd2+ {[%clk 0:00:30.5]}
40. Kg4 {[%clk 0:01:22.1]} 40... Ne4 {[%clk 0:00:30.5]} 41. f5 {[%clk 0:01:22]}
41... Nxg5 {[%clk 0:00:29.9]} 42. hxg5 {[%clk 0:01:21.9]} 42... Re4+ {[%clk
0:00:29.9]} 43. Kf3 {[%clk 0:01:21.6]} 43... gxf5 {[%clk 0:00:30.1]} 44. g4
{[%clk 0:01:22.5]} 44... fxg4+ {[%clk 0:00:29.4]} 0-1

[Event "*** Titled Tuesday Blitz"]
[Site "Chess.com"]
[Date "2020.05.05"]
[Round "10"]
[White "MikhailovViacheslav"]
[Black "OparinGrigoriy"]
[Result "1-0"]
[WhiteElo "2694"]
[BlackElo "2923"]
[TimeControl "180+1"]
[EndTime "11:58:21 PDT"]
[Termination "MikhailovViacheslav won on time"]

1. Nf3 {[%clk 0:03:00]} 1... Nf6 {[%clk 0:02:59.1]} 2. g3 {[%clk 0:03:00]} 2...
d5 {[%clk 0:02:59.2]} 3. Bg2 {[%clk 0:02:59.9]} 3... c5 {[%clk 0:02:58.4]} 4.
O-O {[%clk 0:02:59.9]} 4... g6 {[%clk 0:02:59]} 5. d4 {[%clk 0:02:59.8]} 5...
cxd4 {[%clk 0:02:58.5]} 6. Nxd4 {[%clk 0:02:58.1]} 6... Bg7 {[%clk 0:02:59.1]}
7. c4 {[%clk 0:02:55.7]} 7... O-O {[%clk 0:02:51.8]} 8. cxd5 {[%clk 0:02:50.9]}
8... Nxd5 {[%clk 0:02:52.7]} 9. Nc3 {[%clk 0:02:49.3]} 9... Nxc3 {[%clk
0:02:48.1]} 10. bxc3 {[%clk 0:02:50.2]} 10... Qc7 {[%clk 0:02:38.5]} 11. Qb3
{[%clk 0:02:47.5]} 11... Na6 {[%clk 0:02:24.8]} 12. Ba3 {[%clk 0:02:43.5]} 12...
Rd8 {[%clk 0:02:08.1]} 13. Rfd1 {[%clk 0:02:39]} 13... Rd7 {[%clk 0:01:32.2]}
14. Rd2 {[%clk 0:02:31.9]} 14... e5 {[%clk 0:01:09.8]} 15. Nb5 {[%clk
0:02:29.6]} 15... Qb6 {[%clk 0:01:06.5]} 16. Rd5 {[%clk 0:02:25.9]} 16... Nc7
{[%clk 0:00:42.4]} 17. Nxc7 {[%clk 0:02:20.8]} 17... Qxc7 {[%clk 0:00:43.3]} 18.
Rb1 {[%clk 0:02:08.6]} 18... Rb8 {[%clk 0:00:39]} 19. Rbd1 {[%clk 0:02:02.9]}
19... Rxd5 {[%clk 0:00:38.4]} 20. Bxd5 {[%clk 0:02:00.6]} 20... Bf8 {[%clk
0:00:38.1]} 21. Bxf8 {[%clk 0:01:57.2]} 21... Kxf8 {[%clk 0:00:39]} 22. Qa3+
{[%clk 0:01:54.9]} 22... Kg7 {[%clk 0:00:38.9]} 23. Qxa7 {[%clk 0:01:54.9]}
23... Bh3 {[%clk 0:00:35.6]} 24. Rb1 {[%clk 0:01:50.8]} 24... Rd8 {[%clk
0:00:15.5]} 25. c4 {[%clk 0:01:48.8]} 25... Bc8 {[%clk 0:00:15.7]} 26. Qe3
{[%clk 0:01:44.3]} 26... h5 {[%clk 0:00:15.1]} 27. h4 {[%clk 0:01:41.4]} 27...
Qe7 {[%clk 0:00:10.6]} 28. a4 {[%clk 0:01:34]} 28... Rd6 {[%clk 0:00:10.9]} 29.
a5 {[%clk 0:01:27.8]} 29... Ra6 {[%clk 0:00:10.9]} 30. Rb5 {[%clk 0:01:25.3]}
30... Qf6 {[%clk 0:00:09.8]} 31. Rb6 {[%clk 0:01:17.6]} 31... Rxb6 {[%clk
0:00:07.1]} 32. Qxb6 {[%clk 0:01:15.3]} 32... Qe7 {[%clk 0:00:07.7]} 33. e4
{[%clk 0:01:11.4]} 33... Qa3 {[%clk 0:00:04.7]} 34. Qc7 {[%clk 0:01:06.9]} 34...
Qa1+ {[%clk 0:00:02.7]} 35. Kh2 {[%clk 0:01:02.4]} 1-0

[Event "*** Titled Tuesday Blitz"]
[Site "Chess.com"]
[Date "2020.05.05"]
[Round "10"]
[White "Kate1606"]
[Black "coalescenet"]
[Result "0-1"]
[WhiteElo "2096"]
[BlackElo "2257"]
[TimeControl "180+1"]
[EndTime "11:58:21 PDT"]
[Termination "coalescenet won on time"]

1. e4 {[%clk 0:02:56.7]} 1... c6 {[%clk 0:02:59]} 2. d4 {[%clk 0:02:56.5]} 2...
d5 {[%clk 0:02:59.9]} 3. exd5 {[%clk 0:02:57]} 3... cxd5 {[%clk 0:03:00.8]} 4.
Bd3 {[%clk 0:02:56.1]} 4... Nc6 {[%clk 0:02:59.4]} 5. c3 {[%clk 0:02:56.5]} 5...
Qc7 {[%clk 0:02:59.8]} 6. Ne2 {[%clk 0:01:56.3]} 6... Bg4 {[%clk 0:02:57]} 7. f3
{[%clk 0:01:38.3]} 7... Bd7 {[%clk 0:02:50.2]} 8. Bf4 {[%clk 0:01:23.8]} 8... e5
{[%clk 0:02:49.3]} 9. dxe5 {[%clk 0:01:19]} 9... Nxe5 {[%clk 0:02:50.2]} 10. O-O
{[%clk 0:01:10.7]} 10... Bd6 {[%clk 0:02:50.2]} 11. Re1 {[%clk 0:01:05]} 11...
Ne7 {[%clk 0:02:48.5]} 12. Bxe5 {[%clk 0:00:55.3]} 12... Bxe5 {[%clk 0:02:48.3]}
13. Nd2 {[%clk 0:00:34.8]} 13... Bxh2+ {[%clk 0:02:44.7]} 14. Kh1 {[%clk
0:00:34.3]} 14... Bg3 {[%clk 0:02:35.3]} 15. Nxg3 {[%clk 0:00:28.5]} 15... Qxg3
{[%clk 0:02:35]} 16. Qe2 {[%clk 0:00:24.9]} 16... Be6 {[%clk 0:02:34.4]} 17.
Bb5+ {[%clk 0:00:23.6]} 17... Nc6 {[%clk 0:02:33.5]} 18. Nf1 {[%clk 0:00:20.1]}
18... Qh4+ {[%clk 0:02:32.3]} 19. Kg1 {[%clk 0:00:20.1]} 19... O-O {[%clk
0:02:29.4]} 20. Ne3 {[%clk 0:00:19.2]} 20... a6 {[%clk 0:02:17.9]} 21. Ba4
{[%clk 0:00:19.5]} 21... Na5 {[%clk 0:02:11.8]} 22. Bc2 {[%clk 0:00:18.3]} 22...
Nc4 {[%clk 0:02:07.6]} 23. Qd3 {[%clk 0:00:15.5]} 23... Nxb2 {[%clk 0:02:02.7]}
24. Qf1 {[%clk 0:00:10]} 24... Rac8 {[%clk 0:02:01.5]} 25. Rab1 {[%clk
0:00:09.2]} 25... Nc4 {[%clk 0:01:57.7]} 26. Nxc4 {[%clk 0:00:07.6]} 26... Qxc4
{[%clk 0:01:52.3]} 27. Rxb7 {[%clk 0:00:07.9]} 27... Qxc3 {[%clk 0:01:51]} 28.
Bb1 {[%clk 0:00:05.7]} 28... d4 {[%clk 0:01:36.9]} 29. Rb3 {[%clk 0:00:04.8]}
29... Bxb3 {[%clk 0:01:35.7]} 30. axb3 {[%clk 0:00:04.4]} 30... a5 {[%clk
0:01:29.5]} 31. Qf2 {[%clk 0:00:04.8]} 31... d3 {[%clk 0:01:28.3]} 32. Qh4
{[%clk 0:00:04.3]} 32... g6 {[%clk 0:01:27.6]} 33. Qe4 {[%clk 0:00:03.7]} 33...
d2 {[%clk 0:01:25.4]} 34. Rd1 {[%clk 0:00:02.5]} 34... Rfe8 {[%clk 0:01:23.6]}
35. Qf4 {[%clk 0:00:01.9]} 35... Re1+ {[%clk 0:01:21.8]} 36. Kh2 {[%clk
0:00:02.2]} 36... Rxd1 {[%clk 0:01:21]} 37. Qg4 {[%clk 0:00:02]} 37... Rh1+
{[%clk 0:01:20.8]} 38. Kg3 {[%clk 0:00:02.3]} 38... d1=Q {[%clk 0:01:20.4]} 39.
Kf4 {[%clk 0:00:02.1]} 39... Qd6+ {[%clk 0:01:15.8]} 0-1

[Event "*** Titled Tuesday Blitz"]
[Site "Chess.com"]
[Date "2020.05.05"]
[Round "10"]
[White "Konovalova_Vera"]
[Black "Funkmaus"]
[Result "1/2-1/2"]
[WhiteElo "2111"]
[BlackElo "2208"]
[TimeControl "180+1"]
[EndTime "11:58:25 PDT"]
[Termination "Game drawn by repetition"]

1. d4 {[%clk 0:03:00.9]} 1... c6 {[%clk 0:03:00.4]} 2. Nf3 {[%clk 0:02:58.7]}
2... d5 {[%clk 0:03:01.3]} 3. e3 {[%clk 0:02:58.8]} 3... Nf6 {[%clk 0:03:02.2]}
4. Bd3 {[%clk 0:02:59]} 4... Bg4 {[%clk 0:03:02.1]} 5. b3 {[%clk 0:02:58.8]}
5... e6 {[%clk 0:03:02.6]} 6. Bb2 {[%clk 0:02:58.8]} 6... Bd6 {[%clk 0:03:03.2]}
7. Nbd2 {[%clk 0:02:58.8]} 7... Nbd7 {[%clk 0:03:03.2]} 8. O-O {[%clk
0:02:58.6]} 8... O-O {[%clk 0:03:02.7]} 9. h3 {[%clk 0:02:57.4]} 9... Bh5 {[%clk
0:03:02.3]} 10. Be2 {[%clk 0:02:57.4]} 10... a5 {[%clk 0:02:57]} 11. a4 {[%clk
0:02:55.9]} 11... Re8 {[%clk 0:02:51.4]} 12. Ne5 {[%clk 0:02:55.1]} 12... Bxe2
{[%clk 0:02:39.4]} 13. Qxe2 {[%clk 0:02:54.2]} 13... Qc7 {[%clk 0:02:32.4]} 14.
f4 {[%clk 0:02:52.3]} 14... Ne4 {[%clk 0:02:30.6]} 15. Nxe4 {[%clk 0:02:50.5]}
15... dxe4 {[%clk 0:02:31.5]} 16. c4 {[%clk 0:02:43.9]} 16... f5 {[%clk
0:02:27.3]} 17. Nxd7 {[%clk 0:02:39.2]} 17... Qxd7 {[%clk 0:02:25.9]} 18. Rad1
{[%clk 0:02:32.8]} 18... Qf7 {[%clk 0:02:23]} 19. Qd2 {[%clk 0:02:29.8]} 19...
Bb4 {[%clk 0:02:22.4]} 20. Bc3 {[%clk 0:02:27.9]} 20... Bxc3 {[%clk 0:02:11.5]}
21. Qxc3 {[%clk 0:02:27.4]} 21... Red8 {[%clk 0:02:06]} 22. Rd2 {[%clk
0:02:26.6]} 22... Qc7 {[%clk 0:01:48.1]} 23. Rfd1 {[%clk 0:02:23.4]} 23... Qb6
{[%clk 0:01:39.1]} 24. d5 {[%clk 0:02:14.5]} 24... exd5 {[%clk 0:01:33.3]} 25.
cxd5 {[%clk 0:02:13.9]} 25... cxd5 {[%clk 0:01:31]} 26. Rxd5 {[%clk 0:02:13]}
26... Rxd5 {[%clk 0:01:30.7]} 27. Rxd5 {[%clk 0:02:12.6]} 27... Qe6 {[%clk
0:01:01.6]} 28. Qd4 {[%clk 0:01:48.8]} 28... h6 {[%clk 0:00:46.7]} 29. Kh2
{[%clk 0:01:47.7]} 29... Kh7 {[%clk 0:00:37.6]} 30. Rd7 {[%clk 0:01:43.8]} 30...
Qg6 {[%clk 0:00:31.9]} 31. Rxb7 {[%clk 0:01:36.4]} 31... h5 {[%clk 0:00:30.6]}
32. Rb6 {[%clk 0:01:32.1]} 32... Qf7 {[%clk 0:00:28]} 33. Qe5 {[%clk 0:01:23.4]}
33... Rc8 {[%clk 0:00:25.5]} 34. Rb5 {[%clk 0:01:16.6]} 34... Qg6 {[%clk
0:00:19.7]} 35. Rxa5 {[%clk 0:01:04.1]} 35... Rc2 {[%clk 0:00:17.2]} 36. Qxf5
{[%clk 0:00:55.9]} 36... Rxg2+ {[%clk 0:00:16.6]} 37. Kh1 {[%clk 0:00:55.4]}
37... Rg1+ {[%clk 0:00:17]} 38. Kh2 {[%clk 0:00:55.5]} 38... Rg2+ {[%clk
0:00:15.4]} 39. Kh1 {[%clk 0:00:55.6]} 39... Rg1+ {[%clk 0:00:15.8]} 40. Kh2
{[%clk 0:00:55.6]} 40... Rg2+ {[%clk 0:00:16.7]} 1/2-1/2

[Event "*** Titled Tuesday Blitz"]
[Site "Chess.com"]
[Date "2020.05.05"]
[Round "10"]
[White "Yuri202062"]
[Black "SaqoChess_Twitch"]
[Result "0-1"]
[WhiteElo "2510"]
[BlackElo "2418"]
[TimeControl "180+1"]
[EndTime "11:58:26 PDT"]
[Termination "SaqoChess_Twitch won by resignation"]

1. d4 {[%clk 0:03:00.9]} 1... d5 {[%clk 0:03:00.2]} 2. c4 {[%clk 0:03:01.1]}
2... e6 {[%clk 0:03:00.8]} 3. Nc3 {[%clk 0:03:00.5]} 3... Nf6 {[%clk 0:03:00.5]}
4. cxd5 {[%clk 0:02:59.6]} 4... exd5 {[%clk 0:03:01.4]} 5. Bg5 {[%clk
0:02:59.3]} 5... c6 {[%clk 0:03:02.1]} 6. e3 {[%clk 0:02:58.9]} 6... Qb6 {[%clk
0:03:02.5]} 7. Qd2 {[%clk 0:02:53.3]} 7... Ne4 {[%clk 0:03:02]} 8. Nxe4 {[%clk
0:02:53]} 8... dxe4 {[%clk 0:03:02.9]} 9. Ne2 {[%clk 0:02:53.3]} 9... Nd7 {[%clk
0:03:01.6]} 10. Nc3 {[%clk 0:02:53.3]} 10... h6 {[%clk 0:03:02]} 11. Bf4 {[%clk
0:02:47.6]} 11... f5 {[%clk 0:03:00.4]} 12. Bc4 {[%clk 0:02:39.2]} 12... Nf6
{[%clk 0:03:00]} 13. O-O {[%clk 0:02:38.1]} 13... Qd8 {[%clk 0:02:59.6]} 14. f3
{[%clk 0:02:28]} 14... exf3 {[%clk 0:02:54.3]} 15. Rxf3 {[%clk 0:02:28.1]} 15...
Bd6 {[%clk 0:02:55.2]} 16. Re1 {[%clk 0:02:13.7]} 16... g5 {[%clk 0:02:53]} 17.
Bxd6 {[%clk 0:02:09.2]} 17... Qxd6 {[%clk 0:02:53.9]} 18. e4 {[%clk 0:02:06.8]}
18... Nxe4 {[%clk 0:02:37.4]} 19. Nxe4 {[%clk 0:02:05.5]} 19... fxe4 {[%clk
0:02:38.3]} 20. Rxe4+ {[%clk 0:02:02.4]} 20... Kd8 {[%clk 0:02:38.3]} 21. Qf2
{[%clk 0:01:56.3]} 21... Bd7 {[%clk 0:02:34.4]} 22. Rf7 {[%clk 0:01:50.6]} 22...
Re8 {[%clk 0:02:16.3]} 23. Rxe8+ {[%clk 0:01:31.7]} 23... Kxe8 {[%clk
0:02:15.8]} 24. Rh7 {[%clk 0:01:24.9]} 24... Kd8 {[%clk 0:02:15.5]} 25. Rh8+
{[%clk 0:01:22.9]} 25... Be8 {[%clk 0:02:12.5]} 26. Qe3 {[%clk 0:01:11.7]} 26...
Qe7 {[%clk 0:02:10.3]} 27. Qg3 {[%clk 0:01:05.1]} 27... Qf6 {[%clk 0:02:04.3]}
28. Qe5 {[%clk 0:00:57.2]} 28... Qxe5 {[%clk 0:02:00.3]} 29. dxe5 {[%clk
0:00:57.3]} 29... b5 {[%clk 0:01:57.9]} 30. Bb3 {[%clk 0:00:55.2]} 30... h5
{[%clk 0:01:49.6]} 31. Kf2 {[%clk 0:00:52.3]} 31... Ke7 {[%clk 0:01:49.2]} 32.
Ke3 {[%clk 0:00:50.1]} 32... c5 {[%clk 0:01:48.8]} 33. Bd5 {[%clk 0:00:49]}
33... Rd8 {[%clk 0:01:48.7]} 34. Rh7+ {[%clk 0:00:47.2]} 34... Kf8 {[%clk
0:01:48.2]} 35. Be4 {[%clk 0:00:45.2]} 35... Rd1 {[%clk 0:01:45.3]} 36. Rxa7
{[%clk 0:00:40.4]} 36... c4 {[%clk 0:01:41.5]} 37. Ra8 {[%clk 0:00:38.1]} 37...
Ke7 {[%clk 0:01:41.1]} 38. Bf5 {[%clk 0:00:37.2]} 38... Rg1 {[%clk 0:01:36.7]}
39. Ra7+ {[%clk 0:00:36.4]} 39... Kf8 {[%clk 0:01:35.5]} 40. g3 {[%clk 0:00:33]}
40... Rg2 {[%clk 0:01:32.4]} 41. h4 {[%clk 0:00:33.1]} 41... Rxg3+ {[%clk
0:01:32]} 42. Kd4 {[%clk 0:00:33.3]} 42... gxh4 {[%clk 0:01:30.2]} 43. e6 {[%clk
0:00:32.1]} 43... h3 {[%clk 0:01:28.1]} 44. Ke5 {[%clk 0:00:18.7]} 44... h2
{[%clk 0:01:27]} 45. e7+ {[%clk 0:00:18.9]} 45... Kg7 {[%clk 0:01:24.5]} 46. Be4
{[%clk 0:00:18.4]} 46... Re3 {[%clk 0:01:23.9]} 0-1

[Event "*** Titled Tuesday Blitz"]
[Site "Chess.com"]
[Date "2020.05.05"]
[Round "10"]
[White "AwesomeMango"]
[Black "Spring199"]
[Result "1-0"]
[WhiteElo "2225"]
[BlackElo "2331"]
[TimeControl "180+1"]
[EndTime "11:58:27 PDT"]
[Termination "AwesomeMango won by resignation"]

1. e4 {[%clk 0:03:00.9]} 1... e5 {[%clk 0:03:00.9]} 2. Nf3 {[%clk 0:03:01]} 2...
Nc6 {[%clk 0:03:00.6]} 3. Bb5 {[%clk 0:03:00.8]} 3... a6 {[%clk 0:03:00.3]} 4.
Ba4 {[%clk 0:03:00.8]} 4... Nf6 {[%clk 0:03:00.3]} 5. O-O {[%clk 0:03:00.8]}
5... Be7 {[%clk 0:02:57.5]} 6. d3 {[%clk 0:03:00.6]} 6... b5 {[%clk 0:02:56.2]}
7. Bb3 {[%clk 0:03:00.7]} 7... O-O {[%clk 0:02:57.1]} 8. Nc3 {[%clk 0:03:00.8]}
8... d6 {[%clk 0:02:54.8]} 9. a3 {[%clk 0:03:00.8]} 9... Bg4 {[%clk 0:02:44.4]}
10. Be3 {[%clk 0:03:00.9]} 10... Nd4 {[%clk 0:02:41.2]} 11. Bxd4 {[%clk
0:03:00.4]} 11... exd4 {[%clk 0:02:42.1]} 12. Nd5 {[%clk 0:03:00.3]} 12... Nd7
{[%clk 0:02:41.9]} 13. h3 {[%clk 0:02:56.4]} 13... Bh5 {[%clk 0:02:39.5]} 14. g4
{[%clk 0:02:53.9]} 14... Bg6 {[%clk 0:02:35.5]} 15. Nxd4 {[%clk 0:02:53.7]}
15... Bh4 {[%clk 0:02:18.3]} 16. f4 {[%clk 0:02:47]} 16... h5 {[%clk 0:02:09.4]}
17. gxh5 {[%clk 0:02:32.2]} 17... Bh7 {[%clk 0:02:08.1]} 18. Qg4 {[%clk
0:02:30.4]} 18... Nc5 {[%clk 0:01:55]} 19. Nc6 {[%clk 0:02:12.6]} 19... f5
{[%clk 0:01:28.9]} 20. exf5 {[%clk 0:01:17.2]} 20... Nxb3 {[%clk 0:01:06.4]} 21.
Nxd8 {[%clk 0:01:14.7]} 21... Nxa1 {[%clk 0:00:59.1]} 22. Qxh4 {[%clk
0:01:09.6]} 22... Nxc2 {[%clk 0:00:49.6]} 23. Ne6 {[%clk 0:01:06.2]} 23... Rxf5
{[%clk 0:00:46.4]} 24. Ne7+ {[%clk 0:01:05.6]} 24... Kh8 {[%clk 0:00:43]} 25.
Nxf5 {[%clk 0:01:06.5]} 25... Bxf5 {[%clk 0:00:43.8]} 26. Qe7 {[%clk 0:01:03.7]}
26... Rg8 {[%clk 0:00:38.9]} 27. Ng5 {[%clk 0:01:02.4]} 27... Bxd3 {[%clk
0:00:36.1]} 28. Rd1 {[%clk 0:00:59.1]} 28... Bf5 {[%clk 0:00:34.7]} 29. Qf7
{[%clk 0:00:55.6]} 29... Ne3 {[%clk 0:00:23.1]} 30. Re1 {[%clk 0:00:55.3]} 1-0

[Event "*** Titled Tuesday Blitz"]
[Site "Chess.com"]
[Date "2020.05.05"]
[Round "10"]
[White "DinaBelenkaya"]
[Black "RAU4ever"]
[Result "0-1"]
[WhiteElo "2117"]
[BlackElo "2318"]
[TimeControl "180+1"]
[EndTime "11:58:27 PDT"]
[Termination "RAU4ever won by resignation"]

1. e4 {[%clk 0:03:00.9]} 1... c5 {[%clk 0:02:56]} 2. Nc3 {[%clk 0:02:58]} 2...
g6 {[%clk 0:02:55.8]} 3. g3 {[%clk 0:02:57.2]} 3... Bg7 {[%clk 0:02:56.4]} 4.
Bg2 {[%clk 0:02:57.3]} 4... Nc6 {[%clk 0:02:57.3]} 5. Nge2 {[%clk 0:02:57.3]}
5... d6 {[%clk 0:02:57.1]} 6. O-O {[%clk 0:02:56.9]} 6... Nf6 {[%clk 0:02:57.6]}
7. d3 {[%clk 0:02:56.6]} 7... O-O {[%clk 0:02:57]} 8. h3 {[%clk 0:02:48.8]} 8...
Ne8 {[%clk 0:02:56.5]} 9. Be3 {[%clk 0:02:30.6]} 9... Bd7 {[%clk 0:02:56.1]} 10.
Qc1 {[%clk 0:02:27.9]} 10... Nd4 {[%clk 0:02:50.2]} 11. Bh6 {[%clk 0:02:23.2]}
11... Bxh6 {[%clk 0:02:45.2]} 12. Qxh6 {[%clk 0:02:24.1]} 12... Nxc2 {[%clk
0:02:45.3]} 13. Rad1 {[%clk 0:02:11.7]} 13... Nd4 {[%clk 0:02:43.2]} 14. Nf4
{[%clk 0:02:09.3]} 14... e6 {[%clk 0:02:33.7]} 15. h4 {[%clk 0:01:46.8]} 15...
Qf6 {[%clk 0:02:08.7]} 16. Nh3 {[%clk 0:01:41.7]} 16... Qg7 {[%clk 0:02:05.5]}
17. Qe3 {[%clk 0:01:26.6]} 17... Rb8 {[%clk 0:01:59.5]} 18. f4 {[%clk
0:01:24.5]} 18... f5 {[%clk 0:01:59.7]} 19. Rfe1 {[%clk 0:01:01.8]} 19... Nf6
{[%clk 0:01:56.4]} 20. Qd2 {[%clk 0:00:54.7]} 20... Rfe8 {[%clk 0:01:51.1]} 21.
Kh1 {[%clk 0:00:44.5]} 21... b5 {[%clk 0:01:38.5]} 22. exf5 {[%clk 0:00:36.9]}
22... gxf5 {[%clk 0:01:34]} 23. Qf2 {[%clk 0:00:34.1]} 23... Ng4 {[%clk
0:01:31.7]} 24. Qf1 {[%clk 0:00:34]} 24... b4 {[%clk 0:01:29.2]} 25. Nb1 {[%clk
0:00:29.2]} 25... Nf6 {[%clk 0:01:26.8]} 26. Qf2 {[%clk 0:00:23.5]} 26... h6
{[%clk 0:01:21.4]} 27. Nd2 {[%clk 0:00:21.7]} 27... Kh8 {[%clk 0:01:21.7]} 28.
Nf3 {[%clk 0:00:21.3]} 28... Ng4 {[%clk 0:01:21.9]} 29. Qf1 {[%clk 0:00:20.7]}
29... Nc2 {[%clk 0:01:18.5]} 30. Re2 {[%clk 0:00:16.1]} 30... Nce3 {[%clk
0:01:18.9]} 31. Qe1 {[%clk 0:00:15.9]} 31... Nxd1 {[%clk 0:01:12.2]} 32. Qxd1
{[%clk 0:00:16.8]} 32... Bc6 {[%clk 0:01:10.4]} 33. Qe1 {[%clk 0:00:16.4]} 33...
e5 {[%clk 0:01:10.2]} 34. Nf2 {[%clk 0:00:10.8]} 34... e4 {[%clk 0:01:05.7]} 35.
Nxg4 {[%clk 0:00:07.2]} 35... exf3 {[%clk 0:00:59.1]} 36. Rxe8+ {[%clk
0:00:05.6]} 36... Rxe8 {[%clk 0:01:00]} 37. Qf2 {[%clk 0:00:04.9]} 37... fxg2+
{[%clk 0:00:59.9]} 0-1

[Event "*** Titled Tuesday Blitz"]
[Site "Chess.com"]
[Date "2020.05.05"]
[Round "10"]
[White "davigator"]
[Black "AthanasiusLefebvre"]
[Result "1-0"]
[WhiteElo "2275"]
[BlackElo "2090"]
[TimeControl "180+1"]
[EndTime "11:58:29 PDT"]
[Termination "davigator won on time"]

1. e4 {[%clk 0:03:00.9]} 1... c5 {[%clk 0:02:58.9]} 2. Nf3 {[%clk 0:02:59.6]}
2... e6 {[%clk 0:02:59.3]} 3. d4 {[%clk 0:02:59.8]} 3... cxd4 {[%clk 0:02:59.1]}
4. Nxd4 {[%clk 0:03:00.3]} 4... a6 {[%clk 0:02:59.4]} 5. Nc3 {[%clk 0:03:00]}
5... Qc7 {[%clk 0:02:59.4]} 6. Bd3 {[%clk 0:02:59.9]} 6... b5 {[%clk 0:02:58.9]}
7. O-O {[%clk 0:02:59.6]} 7... Bb7 {[%clk 0:02:57.8]} 8. Qe2 {[%clk 0:02:59]}
8... Nf6 {[%clk 0:02:57.5]} 9. Kh1 {[%clk 0:02:58.2]} 9... d5 {[%clk 0:02:57.4]}
10. e5 {[%clk 0:02:57.4]} 10... Nfd7 {[%clk 0:02:57.2]} 11. f4 {[%clk
0:02:57.5]} 11... g6 {[%clk 0:02:56.9]} 12. a4 {[%clk 0:02:54.4]} 12... b4
{[%clk 0:02:55.8]} 13. Nd1 {[%clk 0:02:54.5]} 13... Nc6 {[%clk 0:02:55.5]} 14.
Nxc6 {[%clk 0:02:53.5]} 14... Qxc6 {[%clk 0:02:51]} 15. a5 {[%clk 0:02:50.2]}
15... h5 {[%clk 0:02:50.1]} 16. Be3 {[%clk 0:02:49.7]} 16... h4 {[%clk
0:02:49.6]} 17. Bd4 {[%clk 0:02:49.2]} 17... h3 {[%clk 0:02:48.9]} 18. g4 {[%clk
0:02:42.2]} 18... Bc5 {[%clk 0:02:43.3]} 19. c3 {[%clk 0:02:41.5]} 19... Ke7
{[%clk 0:01:16.7]} 20. Rf3 {[%clk 0:02:34.6]} 20... Rh4 {[%clk 0:01:10.4]} 21.
Rg3 {[%clk 0:02:28.5]} 21... Rg8 {[%clk 0:01:08]} 22. Ne3 {[%clk 0:02:20.1]}
22... Qc7 {[%clk 0:00:46.7]} 23. Qf1 {[%clk 0:02:15.9]} 23... Rgh8 {[%clk
0:00:44.6]} 24. Qe2 {[%clk 0:02:07.2]} 24... Ke8 {[%clk 0:00:32.1]} 25. Nd1
{[%clk 0:02:06.7]} 25... Be7 {[%clk 0:00:28.6]} 26. Nf2 {[%clk 0:02:00.6]} 26...
Nc5 {[%clk 0:00:27.2]} 27. Qe3 {[%clk 0:01:47.7]} 27... Nb3 {[%clk 0:00:22.7]}
28. Ra2 {[%clk 0:01:43]} 28... Nxd4 {[%clk 0:00:18.6]} 29. cxd4 {[%clk
0:01:42.3]} 29... b3 {[%clk 0:00:18.4]} 30. Ra1 {[%clk 0:01:41.5]} 30... Bb4
{[%clk 0:00:16.7]} 31. Bf1 {[%clk 0:01:38.9]} 31... Bxa5 {[%clk 0:00:15.5]} 32.
Qxb3 {[%clk 0:01:37.1]} 32... Bb6 {[%clk 0:00:14.1]} 33. Rd1 {[%clk 0:01:32.8]}
33... Qc6 {[%clk 0:00:12.1]} 34. Rxh3 {[%clk 0:01:30.2]} 34... Rxh3 {[%clk
0:00:10.9]} 35. Bxh3 {[%clk 0:01:30.3]} 35... Rh4 {[%clk 0:00:10.5]} 36. Kg2
{[%clk 0:01:29.8]} 36... Ba5 {[%clk 0:00:08.5]} 37. Kg3 {[%clk 0:01:28.8]} 37...
Rh7 {[%clk 0:00:07.3]} 38. Bf1 {[%clk 0:01:27.4]} 38... Qb6 {[%clk 0:00:06.5]}
39. Qa4+ {[%clk 0:01:23.7]} 39... Bc6 {[%clk 0:00:05.1]} 40. Qa3 {[%clk
0:01:24]} 40... Bb5 {[%clk 0:00:01.5]} 41. Bxb5+ {[%clk 0:01:18.4]} 41... Qxb5
{[%clk 0:00:02.4]} 42. Qd6 {[%clk 0:01:12.3]} 42... Qb3+ {[%clk 0:00:01.9]} 43.
Rd3 {[%clk 0:01:12]} 1-0